Cogmind - Beta 13 @@@ ROGUE MODE // 2024.04.21 @ 02:02:01 Player: Aavak Result: Destroyed by G-47 Trooper with Particle Gun Performance ------------- Evolutions (0) 0 Regions Visited (1) 200 Robots Destroyed (24) 120 Value Destroyed (528) 528 Prototype IDs (0) 0 Alien Tech Used (0) 0 Bonus (0) 0 TOTAL SCORE: 848 Bonus ------- None Cogmind --------- Core Integrity 0/250 Matter 196/300 Energy 100/100 System Corruption 0% Temperature Cool (9) Movement Rolling (80) Location -10/Materials Parts ------- > --- POWER (1) -------- (None) > --- PROPULSION (2) --- Wheel Wheel > --- UTILITY (2) ------ Medium Storage Unit Sensor Array > --- WEAPON (2) ------- Light Assault Rifle Light Cannon > --- INVENTORY (10) --- Light Treads Improved Heat Sink High-capacity Matter Pod (200) Signal Interpreter Terrain Scan Processor Light Armor Plating Hacking Suite Peak State ------------ > --- POWER ------------ Light Ion Engine > --- PROPULSION ------- Light Treads Wheel > --- UTILITY ---------- Medium Storage Unit Seismic Detector > --- WEAPON ----------- EM Pulse Gun Assault Rifle > --- INVENTORY -------- Light Treads Wheel Wheel Wheel Small Storage Unit Terrain Scanner Terrain Scan Processor Light Assault Rifle Mining Laser [Rating: 8] Favorites ----------- Power Ion Engine Engine Ion Engine Propulsion Wheel Treads Light Treads Wheel Wheel Utility Medium Storage Unit Device Sensor Array Storage Medium Storage Unit Weapon Assault Rifle Energy Gun EM Pulse Gun Ballistic Gun Assault Rifle Ballistic Cannon Light Cannon Launcher Grenade Launcher Build | -11 -10 ------- Run | Yrd Mat Slots Evolved . | . . Power . | . . Propulsion . | . . Utility . | . . Weapon . | . . Parts Attached 22 | 9 13 Power 2 | 1 1 Engine 2 | 1 1 Core . | . . Reactor . | . . Propulsion 7 | 4 3 Treads 1 | 1 . Leg . | . . Wheel 6 | 3 3 Hover . | . . Flight . | . . Utility 4 | 2 2 Device 2 | 1 1 Storage 2 | 1 1 Processor . | . . Hackware . | . . Protection . | . . Artifact . | . . Weapon 9 | 2 7 Energy Gun 3 | 1 2 Energy Cannon . | . . Ballistic Gun 3 | 1 2 Ballistic Cannon 2 | . 2 Launcher 1 | . 1 Special Weapon . | . . Impact Weapon . | . . Slashing Weapon . | . . Piercing Weapon . | . . Special Melee Weapon . | . . Unidentified Prototypes . | . . Parts Lost 5 | . 5 Power 1 | . 1 Propulsion 1 | . 1 Utility . | . . Weapon 3 | . 3 Highest Loss Streak 4 | . 4 To Critical Strikes . | . . Average Slot Usage (%) 97 | . 97 Engine 11 | . 11 Treads 11 | . 11 Wheel 15 | . 15 Device 14 | . 14 Storage 14 | . 14 Energy Gun 9 | . 9 Ballistic Gun 16 | . 16 Ballistic Cannon 2 | . 2 Naked Turns . | . . Heaviest Build 20 | 13 20 Greatest Support 32 | 32 20 Greatest Overweight (x) 4 | 1 4 Average Overweight (x) . | . . Largest Inventory Capacity 10 | 8 10 Average Capacity 9 | 7 9 Most Carried 10 | 5 10 Average Carried 8 | 2 9 Final Capacity 10 | 8 10 Final Carried 7 | 5 7 Class Distribution -------------------- 100% | Mutant Dominant Class ---------------- Mutant | -10/Materials Resources | -11 -10 ----------- Run | Yrd Mat Matter Collected 804 | 314 490 Remotely . | . . Salvage Created 674 | 158 516 Parts 52 | 14 38 Haulers Intercepted 1 | . 1 Recyclers Shooed . | . . Parts Field Recycled . | . . Retrieved Matter . | . . Parts Self-Destructed . | . . Prevented . | . . Kills | -11 -10 ------- Run | Yrd Mat Combat Hostiles Destroyed 11 | . 11 Guns 7 | . 7 Cannons 4 | . 4 Classes Destroyed 8 | 3 5 Worker 1 | 1 . Builder 4 | . 4 Tunneler 3 | 3 . Hauler 1 | . 1 Recycler 1 | 1 . Operator 1 | . 1 Watcher 2 | . 2 Grunt 11 | . 11 Best Kill Streak 4 | 4 3 Combat Bots Only 3 | . 3 Max Kills in Single Turn 1 | 1 1 Gunslinging . | . . Exploded . | . . Melee . | . . Uniques/NPCs Destroyed . | . . Combat | -11 -10 -------- Run | Yrd Mat Hostile Shots Fired 79 | . 79 Missed 16 | . 16 Damage Taken 854 | . 854 Core 254 | . 254 Absorbed by Shields . | . . Core Remaining (%) 100 | 100 . Volleys Fired 75 | 8 67 Largest 2 | 2 2 Hottest 60 | 60 60 Shots Fired 147 | 16 131 Gun 128 | 16 112 Cannon 15 | . 15 Launcher 4 | . 4 Special . | . . Kinetic 108 | 8 100 Thermal . | . . Explosive 4 | . 4 Electromagnetic 35 | 8 27 Robot Hit Streak 11 | 6 11 Robot Miss Streak 3 | 1 3 Penetration Max . | . . Secondary Targets . | . . Shots Hit Robots 96 | 11 85 Core Hits 44 | 6 38 Critical Kills . | . . Critical Parts Destroyed 1 | . 1 Critical Strikes 2 | . 2 Destroy 1 | . 1 Blast 1 | . 1 Melee Attacks . | . . Impact . | . . Slashing . | . . Piercing . | . . Sneak Attacks . | . . Combat Hostiles . | . . Follow-up Attacks . | . . Damage Inflicted 1474 | 141 1333 Guns 1006 | 141 865 Cannons 163 | . 163 Explosions 305 | . 305 Melee . | . . Ramming . | . . Kinetic 847 | 47 800 Thermal 109 | . 109 Explosive 196 | . 196 Electromagnetic 322 | 94 228 Impact . | . . Slashing . | . . Piercing . | . . Highest Corruption . | . . Average Corruption . | . . Corruption Purged . | . . Corruption Blocked . | . . Overload Shots . | . . Overflow Damage 20 | . 20 Projectiles . | . . Explosions 20 | . 20 Melee . | . . Knockbacks . | . . Impact . | . . Kinetic . | . . Secondary . | . . Self-Inflicted Damage 38 | . 38 Shots 1 | . 1 Rammed . | . . Targets Rammed . | . . Kicked . | . . Crushed . | . . Highest Temperature 108 | . 108 Average Temperature 25 | . 25 Received Heat Transfer 435 | . 435 Siege Activations . | . . Robots Corrupted . | . . Combat Hostiles . | . . Parts Fried 1 | 1 . Impact Corruptions . | . . Robots Melted . | . . Combat Hostiles . | . . Parts Melted . | . . Heat Transferred 200 | . 200 Parts Sabotaged . | . . Parts Stolen . | . . Parts Stripped . | . . Power Chain Reactions 2 | . 2 Alert | -11 -10 ------- Run | Yrd Mat Peak Influence 218 | 25 218 Initial 16 | . 16 Average 79 | 8 89 Maximum Alert Level 1 | . 1 Low Security (%) 93 | 100 92 Level 1 6 | . 7 Level 2 . | . . Level 3 . | . . Level 4 . | . . Level 5 . | . . High Security . | . . Max Security . | . . Squads Dispatched 3 | . 3 Investigation 2 | . 2 Extermination . | . . Reinforcement 1 | . 1 Assault . | . . Garrison . | . . Intercept . | . . Searches Triggered . | . . Construction Impeded . | . . Haulers Reinforced . | . . Active Scanning Responses . | . . Cargo Convoy Interrupts . | . . Stealth | -11 -10 --------- Run | Yrd Mat Distress Signals . | . . Communications Jammed . | . . Distress Signals . | . . Times Spotted 19 | . 19 Peak Tracking Total 5 | . 5 Tactical Retreats 2 | . 2 Traps | -11 -10 ------- Run | Yrd Mat Traps Triggered 1 | . 1 Indirectly . | . . Trap Hack Attempts . | . . Triggered . | . . Disarmed . | . . Reprogrammed . | . . Reused . | . . Traps Extracted . | . . Installed . | . . Triggered . | . . Machines | -11 -10 ---------- Run | Yrd Mat Machines Disabled 3 | . 3 Max in Single Turn 1 | . 1 Machines Repaired . | . . Machines Dismantled . | . . Machines Sabotaged . | . . Overloaded Fab Kills . | . . Hacking | -11 -10 --------- Run | Yrd Mat Machines Accessed 8 | . 8 Terminals 7 | . 7 Fabricators . | . . Repair Stations . | . . Recycling Units 1 | . 1 Scanalyzers . | . . Garrison Access . | . . Total Hacks 32 | . 32 Successful 15 | . 15 Failed 17 | . 17 Catastrophic 2 | . 2 Database Lockouts . | . . Manual 20 | . 20 Terminals 31 | . 31 Fabricators . | . . Repair Stations . | . . Recycling Units 1 | . 1 Scanalyzers . | . . Garrison Access . | . . Terminal Hacks 7 | . 7 Robot Analysis 1 | . 1 Terminal Index 1 | . 1 Alert Level 1 | . 1 Locate Traps 1 | . 1 Reinforcement Status 1 | . 1 Zone Layout 2 | . 2 Fabricator Hacks . | . . Repair Station Hacks . | . . Recycling Unit Hacks 1 | . 1 Report Inventory 1 | . 1 Scanalyzer . | . . Garrison Access Hacks . | . . Unauthorized Hacks 7 | . 7 Terminals 7 | . 7 Assimilate 2 | . 2 Botnet 4 | . 4 Operators 1 | . 1 Fabricators . | . . Repair Stations . | . . Recycling Units . | . . Scanalyzers . | . . Garrison Access . | . . Data Cores Recovered . | . . Used . | . . Hacking Detections 7 | . 7 Full Trace Events 3 | . 3 Feedback Events . | . . Feedback Blocked . | . . Robot Schematics Acquired . | . . Robots Built . | . . Authchips . | . . Time . | . . Total Robot Build Rating . | . . Part Schematics Acquired . | . . Parts Built . | . . Authchips . | . . Time . | . . Total Part Build Rating . | . . Parts Repaired . | . . Time . | . . Parts Recycled . | . . Recycled Matter . | . . Retrieved Matter . | . . Retrieved Components . | . . Parts Scanalyzed . | . . Part Schematics Acquired . | . . Parts Damaged . | . . Bothacking | -11 -10 ------------ Run | Yrd Mat Used RIF Installer . | . . Robots Hacked . | . . Non-combat . | . . Combat . | . . Robot Hacks Applied . | . . Relay Couplers Released . | . . Fabnet Peak Effective % . | . . Robots Rewired . | . . Allies Hacked . | . . Hacks Repelled . | . . Allies | -11 -10 -------- Run | Yrd Mat Total Allies . | . . Largest Group . | . . Highest-Rated Group . | . . Highest-Rated Ally . | . . Total Orders . | . . Ally Attacks . | . . Total Damage . | . . Kills . | . . Allies Corrupted . | . . Allies Melted . | . . Intel | -11 -10 ------- Run | Yrd Mat Robot Analysis Total 1 | . 1 Derelict Logs Recovered . | . . Drone Launches . | . . Drone Recoveries . | . . Exploration | -11 -10 ------------- Run | Yrd Mat Turns Passed 1016 | 121 895 Spaces Moved 629 | 77 552 Core 11 | 3 8 Treads 1 | . 1 Legs . | . . Wheels 617 | 74 543 Hover . | . . Flight . | . . Fastest Speed 50 | 50 80 Average Speed 95 | 96 94 Slowest Speed 250 | 100 250 Overloaded Moves . | . . Propulsion Burnouts . | . . Robots Hopped . | . . Cave-ins Triggered 1 | . 1 Exploration Rate (%) 44 | 4 84 Regions Visited 1 Branch Regions . Pre-discovered Areas . | . . Known Exits Taken . | . . Unknown Exits Taken 1 | 1 . Scrap Searched . | . . Spaces Dug . | . . Terrain Destroyed 35 | . 35 Melee . | . . Projectile . | . . AOE 35 | . 35 Terrain Rammed . | . . Walls Destroyed . | . . Machines Disabled . | . . Actions | -11 -10 --------- Run | Yrd Mat Total 905 | 105 800 Wait 146 | . 146 Move 628 | 76 552 Hop . | . . Pick Up 20 | 8 12 Fast Attach 9 | 7 2 Attach 4 | . 4 Detach . | . . Swap 9 | 2 7 Drop 14 | 4 10 Fire 75 | 8 67 Melee . | . . Ram . | . . Kick . | . . Crush . | . . Escape Stasis . | . . Rewire . | . . Trap . | . . Miscellaneous . | . . Route ------- -11/Scrapyard -10/Materials (discovered 3 exits: [*Mat x2] / [*Min]) History --------- Turn | Location | Event 21 | -11/Scrapyard | Discovered new exit (range 14) 122 | -11/Scrapyard | Entered Materials 207 | -10/Materials | Discovered new exit (range 13) 304 | -10/Materials | Discovered new exit (range 16) 306 | -10/Materials | Build established: Mutant 844 | -10/Materials | Core integrity fell below 50% 851 | -10/Materials | Discovered new exit (range 15) 905 | -10/Materials | Crushed by falling debris 905 | -10/Materials | Core integrity fell below 20% 912 | -10/Materials | Lost 4 parts (1p1n2w) 1017 | -10/Materials | Destroyed by G-47 Trooper with Particle Gun Last Messages --------------- Testing... Terminal linked with 3 systems. Awaiting botnet instructions. >>Trojan(Assimilate) Trojan loaded successfully. Testing... System interface override in place. >>Layout(Zone) Retrieving Zone 7N layout... Downloaded map data. >>Enumerate(Reinforcements) Retrieving latest reported positions... No active reinforcement squads found. 00977_ A-02 Transporter Lgt. Treads blasted off. 00988_ Connecting with Terminal... >>Trojan(Assimilate) Trojan loaded successfully. Testing... System interface override in place. 01009_ G-34 Mercenary destroyed. Map ----- +----------------------------------------------------+ | | | | | | | ?????????????????????????????????????????????????? | | ?????????????????????????????????????????????????? | | ?????????????????????????????????????????????????? | | ?????????????????????????????????????????????????? | | ?????????????????????????????????????????????????? | | ?????????????????????????????????????????????????? | | ?????????????????????????????????????????????????? | | ?????????????????????????????????????????????????? | | ?????????????????????????????????????????????????? | | ???????????????????????????????????????????????### | | ???????????????????????????????????????????????# | | ???????????????????????????????????????????????# | | ???????????????????????????????????????????????# | | ???????????????????????????????????????????????# | | ???????????????????????????????????????????????+ | | ???????????????????????????????????????????????# | | ????############################### """???????# | | ????# """???????# | | ????# ######## """ ######## | | ????# #??????? | | ????# =[#??????? | | ????# ######## #####g#####??????"" | | ????# #??????# # T @%% #??????"" ####### | | ????# #??????# # % #??????????####### | | ????# #??????# # #??????????# [ # | | ????# ####???# # #??????????# ]=[*+ | | ????# #???# ###########??????????#! = # | | #####+# ^#???# #????# ???????????# !=# | | # #?###+###### "???????????####### | | # ### # "?????????????????# | | # T## ! # "?????????????????# | | # ### # ?????????????????# | | # # # ???o????????????## | | + + #####????????????????#T | | # # #?????? ?????????## | | # # #?????# ??????????# | | ### ###### #?????# |?????????# | | #?# #????# #?????# < ""???###### | | #?# #????##########?????# |????# | | | #?# #???????????????????# "????# || | | #?# #???????????????????# ?????# | | ######### #????????????????????# #?????#% | | # #????????????????????# #?????# !== | | """ # #????????????????????# ####### !== | | "Y" # ########?????????????# != | | !# ############### | | ] =+ ^ =%=[ %% | +----------------------------------------------------+ Best States ------------- Heat Dissipation 25 Energy Generation 10 Energy Capacity 250 Matter Stores 300 Matter Capacity 300 Sight Range 16 Robot Scan Range 14 Terrain Scan Density 10 Evasion (%) 44 Recoil Reduction 1 Item Schematics ----------------- None Robot Schematics ------------------ None Fabricated ------------ Nothing Alien Tech Used ----------------- None Achievements -------------- None Challenges ------------ None Game ------ Seed MultinovaConstructSheargun Manual? 0 Play Time 00:25:23 Cumulative 14.3 hours Start 2024.04.18 @ 14:46:35 End 2024.04.21 @ 02:02:01 Sessions 4 Manual Loads 0 Difficulty Rogue Special Mode None Game No. 13 Rogue 13 Adventurer 0 Explorer 0 Win Type - Total 0 Types 0/0/0/0/0/0/0/0/0 Lore% 15 Gallery% 13 Achievement% 14 Wizard Run 0 Options --------- Layout 0 ASCII 0 Keyboard 0 Movement Mouse Keybinds 0 Fullscreen 2 Font 18/SmallcapsGlow Map View 76x50 Zoom Use 2% Tactical HUD 1 Map Filters NONE Filters NONE Steam 1 RUN: 195d35d8-4d49-42cf-a270-27b400f25f50